fUSD/lending_fUSD_20240117
["ID","MTS","AMOUNT","RATE_DAILY","PERIOD"]
[311872646,1705482548290,-160.91320222,0.00020133,2]
[311872647,1705482548318,-10666.44,0.00020143,2]
[311872648,1705482548342,-200.0,0.00020175,2]
[311872649,1705482548368,-150.0,0.00020233,2]
[311872650,1705482548393,-157.43,0.00020272,2]
[311872651,1705482548418,-299.99,0.00020272,7]
[311872652,1705482548441,-871.0,0.00020282,2]
[311872653,1705482548466,-157.43,0.00020331,2]
[311872654,1705482548494,-266.7,0.00020384,2]
[311872655,1705482548519,-157.43,0.00020389,2]
[311872656,1705482548545,-170.49,0.00020392,2]
[311872657,1705482548569,-1000.0,0.00020422,2]
[311872658,1705482548591,-499.99,0.00020422,2]
[311872659,1705482548620,-157.43,0.00020448,2]
[311872660,1705482548647,-159.37,0.00020483,2]
[311872661,1705482548675,-170.49,0.00020499,2]
[311872662,1705482548701,-750.0,0.000205,2]
[311872663,1705482548728,-157.43,0.00020507,2]
[311872664,1705482548755,-2000.0,0.00020548,2]
[311872665,1705482548782,-157.43,0.00020565,2]
[311872666,1705482548807,-170.49,0.00020606,2]
[311872667,1705482548832,-201.99998,0.00020608,2]
[311872668,1705482548855,-160.91320218,0.00020623,2]
[311872669,1705482548879,-157.43,0.00020624,2]
[311872670,1705482548904,-157.43,0.00020683,2]
[311872671,1705482548931,-170.49,0.00020713,2]
[311872672,1705482548955,-157.43,0.00020742,2]
[311872673,1705482548981,-157.43,0.000208,2]
[311872674,1705482549008,-170.49,0.00020821,2]
[311872675,1705482549033,-157.43,0.00020859,2]
[311872676,1705482549056,-176.27,0.00020917,2]
[311872677,1705482549082,-157.43,0.00020918,2]
[311872678,1705482549107,-170.49,0.00020928,2]
[311872679,1705482549131,-20660.88,0.00020951,2]
[311872680,1705482549153,-398.8,0.00020951,2]
[311872681,1705482549176,-1987.63557612,0.00020951,2]
[311872682,1705482574374,205.0,0.00019608,2]
[311872695,1705482632096,-200.0,0.00020433,2]
[311872696,1705482632106,-503.84036235,0.00020949,2]
[311872697,1705482632116,-17.01448515,0.0002095,2]
[311872698,1705482632157,-278.44788661,0.0002095,2]
[311872699,1705482632166,-3.88473872,0.00020951,2]
[311872700,1705482632241,-612.37351679,0.00020951,2]
[311872701,1705482632254,-1154.48370751,0.00020951,2]
[311872702,1705482632265,-509.2,0.00020951,2]
[311872703,1705482632287,-1475.65458751,0.00020951,2]
[311872704,1705482632334,-13458.90787335,0.00020951,2]
[311872705,1705482632344,-159.37,0.00020964,2]
[311872706,1705482632354,-157.43,0.00020976,2]
[311872707,1705482632363,-2432.2025,0.00020979,2]
[311872708,1705482632374,-521.68,0.00020991,2]
[311872709,1705482632383,-157.43,0.00021035,2]
[311872710,1705482632393,-170.49,0.00021035,2]
[311872712,1705482632402,-3185.89838635,0.00021038,2]
[311872715,1705482632412,-724.25,0.00021078,2]
[311872716,1705482632421,-709.54,0.00021079,2]
[311872719,1705482632431,-726.42,0.00021079,2]
[311872721,1705482632440,-376.23286139,0.00021079,2]
[311872731,1705482638116,-164.78321963,0.00020432,2]
[311872732,1705482638125,-5333.14230342,0.0002095,2]
[311872733,1705482638134,-502.74059795,0.00021079,2]
[311872734,1705482638144,-354.14107881,0.0002108,2]
[311872735,1705482638153,-157.43,0.00021094,2]
[311872736,1705482638162,-160.91320218,0.00021112,2]
[311872737,1705482638171,-170.49,0.00021143,2]
[311872738,1705482638180,-157.43,0.00021152,2]
[311872739,1705482638189,-502.5825696,0.000212,2]
[311872740,1705482638201,-157.43,0.00021211,2]
[311872741,1705482638211,-170.49,0.0002125,2]
[311872742,1705482638220,-148.42717616,0.0002127,2]
[311872743,1705482638241,-9.00282384,0.0002127,2]
[311872744,1705482638251,-165.83,0.00021273,2]
[311872745,1705482638260,-138.43717616,0.00021328,2]
[311872746,1705482638384,-18.99282384,0.00021328,2]
[311872747,1705482638393,-170.49,0.00021357,2]
[311872748,1705482638403,-109.30770636,0.00021446,2]
[311872749,1705482638423,-50.06229364,0.00021446,2]
[311872750,1705482638433,-170.49,0.00021465,2]
[311872751,1705482638442,-1228.01438958,0.00021465,3]
[311872752,1705482638450,-352.33,0.00021465,2]
[311872753,1705482638460,-3070.19431678,0.00021516,2]
[311872754,1705482638472,-7972.90068322,0.00021516,2]
[311872755,1705482638481,-471.31107766,0.00021523,2]
[311872756,1705482638490,-170.49,0.00021572,2]
[311872757,1705482638499,-160.91320218,0.00021602,2]
[311872758,1705482638509,-554.73317908,0.00021605,2]
[311872759,1705482638518,-633.6342,0.00021614,2]
[311872760,1705482638528,-14867.4261,0.00021616,2]
[311872761,1705482638538,-20224.8448,0.00021616,2]
[311872762,1705482638548,-278.0,0.00021642,2]
[311872763,1705482638559,-151.39,0.00021644,2]
[311872764,1705482638567,-170.49,0.00021679,2]
[311872765,1705482638577,-343.24795043,0.00021687,2]
[311872766,1705482638585,-155.33886858,0.00021714,2]
[311872767,1705482638595,-156.76793458,0.00021714,2]
[311872768,1705482638604,-465.0,0.00021714,2]
[311872769,1705482638614,-301.48389822,0.00021714,2]
[311872770,1705482638623,-400.0,0.00021714,2]
[311872771,1705482638632,-188.70735692,0.00021714,2]
[311872772,1705482638643,-4623.14199213,0.00021714,2]
[311872773,1705482638653,-528.75487722,0.00021714,2]
[311872774,1705482638663,-246.50580772,0.00021714,2]
[311872775,1705482638673,-1415.24839978,0.00021714,2]
[311872776,1705482638683,-3856.82715024,0.00021714,2]
[311872777,1705482638692,-1018.12374161,0.00021714,2]
[311872778,1705482638702,-155.75181538,0.00021714,2]
[311872779,1705482638711,-289.33844253,0.00021714,2]
[311872781,1705482638720,-524.50439607,0.00021714,2]
[311872783,1705482638730,-204.98721396,0.00021714,2]
[311872785,1705482638739,-970.41823375,0.00021714,2]
[311872787,1705482638749,-441.70822702,0.00021714,2]
[311872788,1705482638760,-214.74028838,0.00021714,2]
[311872790,1705482638796,-38421.00018204,0.00021714,2]
[311872793,1705482638808,-260.05395446,0.00021715,2]
[311872795,1705482638818,-156.14128778,0.00021715,2]
[311872796,1705482638828,-155.38943818,0.00021715,2]
[311872799,1705482638842,-658.03194318,0.00021715,2]
[311872800,1705482638852,-624.3,0.00021715,2]
[311872802,1705482638863,-5614.9734,0.00021716,2]
[311872805,1705482638874,-2436.4195,0.00021716,2]
[311872806,1705482638884,-245000.0,0.00021716,2]
[311872809,1705482638895,-170.49,0.00021787,2]
[311872810,1705482638905,-250.0,0.00021817,2]
[311872813,1705482638916,-55555.0,0.00021817,2]
[311872814,1705482638926,-169.01285531,0.00021817,2]
[311872816,1705482638935,-11544.15261875,0.00021817,2]
[311872818,1705482638945,-170.49,0.00021894,2]
[311872820,1705482638955,-169.41942691,0.00021915,2]
[311872822,1705482638964,-850.0667792,0.00021915,2]
[311872824,1705482638974,-876.3809334,0.00021915,2]
[311872826,1705482638984,-192.61472402,0.00021915,2]
[311872829,1705482638994,-5879.56449395,0.00021916,2]
[311872831,1705482639004,-500.0,0.00021917,2]
[311872833,1705482639015,-500.0,0.00021917,2]
[311872835,1705482639025,-500.0,0.00021917,2]
[311872837,1705482639034,-511.58965625,0.00021917,2]
[311872839,1705482639045,-518.48784262,0.00021917,2]
[311872840,1705482639055,-502.64696854,0.00021917,2]
[311872843,1705482639067,-500.0,0.00021917,2]
[311872845,1705482639078,-500.0,0.00021917,2]
[311872847,1705482639089,-500.0,0.00021917,2]
[311872849,1705482639099,-500.0,0.00021917,2]
[311872851,1705482639108,-500.0,0.00021917,2]
[311872853,1705482639119,-1256.6,0.00021917,2]
[311872855,1705482639130,-500.0,0.00021917,2]
[311872856,1705482639140,-649.0,0.00021917,2]
[311872858,1705482639149,-500.0,0.00021917,2]
[311872860,1705482639160,-631.68,0.00021917,2]
[311872862,1705482639170,-530.4817708,0.00021917,2]
[311872864,1705482639180,-500.0,0.00021917,2]
[311872866,1705482639190,-515.88397453,0.00021917,2]
[311872868,1705482639200,-500.0,0.00021917,2]
[311872870,1705482639211,-868.62,0.00021917,2]
[311872872,1705482639222,-695.14,0.00021917,2]
[311872874,1705482639232,-500.0,0.00021917,2]
[311872876,1705482639243,-500.0,0.00021917,2]
[311872878,1705482639252,-578.83,0.00021917,2]
[311872881,1705482639261,-500.0,0.00021917,2]
[311872883,1705482639271,-500.0,0.00021917,2]
[311872885,1705482639282,-518.4982116,0.00021917,2]
[311872886,1705482639293,-500.0,0.00021917,2]
[311872889,1705482639303,-500.0,0.00021917,2]
[311872890,1705482639315,-1247.54,0.00021917,2]
[311872893,1705482639327,-500.0,0.00021917,2]
[311872895,1705482639337,-500.0,0.00021917,2]
[311872897,1705482639347,-500.0,0.00021917,2]
[311872898,1705482639356,-198.45424354,0.00021917,2]
[311872901,1705482639367,-500.0,0.00021917,2]
[311872903,1705482639378,-500.0,0.00021917,2]
[311872904,1705482639389,-500.0,0.00021917,2]
[311872906,1705482639399,-500.0,0.00021917,2]
[311872908,1705482639409,-500.0,0.00021917,2]
[311872910,1705482639421,-500.0,0.00021917,2]
[311872913,1705482639432,-642.94,0.00021917,2]
[311872915,1705482639443,-500.0,0.00021917,2]
[311872916,1705482639453,-792.57,0.00021917,2]
[311872919,1705482639463,-700.19,0.00021917,2]
[311872921,1705482639474,-945.73,0.00021917,2]
[311872923,1705482639484,-500.0,0.00021917,2]
[311872925,1705482639493,-500.0,0.00021917,2]
[311872927,1705482639503,-771.82,0.00021917,2]
[311872929,1705482639512,-1027.45,0.00021917,2]
[311872931,1705482639521,-500.0,0.00021917,2]
[311872932,1705482639531,-500.0,0.00021917,2]
[311872935,1705482639541,-718.24,0.00021917,2]
[311872937,1705482639550,-500.0,0.00021917,2]
[311872939,1705482639561,-635.26,0.00021917,2]
[311872941,1705482639570,-235.67502705,0.00021917,2]
[311872943,1705482639579,-500.0,0.00021917,2]
[311872945,1705482639589,-500.0,0.00021917,2]
[311872947,1705482639598,-500.0,0.00021917,2]
[311872949,1705482639607,-707.56,0.00021917,2]
[311872950,1705482639617,-500.0,0.00021917,2]
[311872952,1705482639627,-500.0,0.00021917,2]
[311872954,1705482639636,-500.0,0.00021917,2]
[311872957,1705482639646,-500.0,0.00021917,2]
[311872959,1705482639656,-521.67,0.00021917,2]
[311872961,1705482639665,-500.0,0.00021917,2]
[311872962,1705482639674,-538.78,0.00021917,2]
[311872963,1705482639683,-500.0,0.00021917,2]
[311872964,1705482639692,-506.21079234,0.00021917,2]
[311872965,1705482639701,-500.0,0.00021917,2]
[311872966,1705482639710,-500.0,0.00021917,2]
[311872967,1705482639720,-500.0,0.00021917,2]
[311872968,1705482639728,-500.0,0.00021917,2]
[311872969,1705482639737,-500.0,0.00021917,2]
[311872970,1705482639746,-783.12,0.00021917,2]
[311872972,1705482639755,-629.42,0.00021917,2]
[311872974,1705482639764,-500.0,0.00021917,2]
[311872976,1705482639773,-500.0,0.00021917,2]
[311872978,1705482639783,-500.0,0.00021917,2]
[311872980,1705482639792,-500.0,0.00021917,2]
[311872982,1705482639802,-500.0,0.00021917,2]
[311872984,1705482639812,-516.40718741,0.00021917,2]
[311872986,1705482639821,-500.0,0.00021917,2]
[311872988,1705482639831,-500.0,0.00021917,2]
[311872990,1705482639840,-332.89083987,0.00021917,2]
[311872992,1705482639850,-500.0,0.00021917,2]
[311872994,1705482639859,-500.0,0.00021917,2]
[311872996,1705482639868,-500.0,0.00021917,2]
[311872998,1705482639877,-500.0,0.00021917,2]
[311873000,1705482639886,-500.0,0.00021917,2]
[311873002,1705482639895,-500.0,0.00021917,2]
[311873036,1705482639904,-526.49,0.00021917,2]
[311873039,1705482640168,-559.47,0.00021917,2]
[311873041,1705482640177,-500.0,0.00021917,2]
[311873043,1705482640186,-483.17634052,0.00021917,2]
[311873045,1705482640196,-689.09,0.00021917,2]
[311873047,1705482640206,-500.0,0.00021917,2]
[311873049,1705482640218,-500.0,0.00021917,2]
[311873051,1705482640227,-500.0,0.00021917,2]
[311873053,1705482640236,-500.0,0.00021917,2]
[311873055,1705482640246,-500.0,0.00021917,2]
[311873057,1705482640255,-500.0,0.00021917,2]
[311873059,1705482640264,-500.0,0.00021917,2]
[311873061,1705482640273,-500.0,0.00021917,2]
[311873063,1705482640282,-500.0,0.00021917,2]
[311873065,1705482640292,-500.0,0.00021917,2]
[311873067,1705482640302,-500.0,0.00021917,2]
[311873069,1705482640311,-541.66,0.00021917,2]
[311873071,1705482640321,-569.36,0.00021917,2]
[311873072,1705482640330,-500.0,0.00021917,2]
[311873075,1705482640339,-500.0,0.00021917,2]
[311873077,1705482640348,-1287.26,0.00021917,2]
[311873079,1705482640358,-500.0,0.00021917,2]
[311873080,1705482640367,-548.49558681,0.00021917,2]
[311873083,1705482640376,-553.8,0.00021917,2]
[311873085,1705482640386,-735.06,0.00021917,2]
[311873086,1705482640395,-500.0,0.00021917,2]
[311873089,1705482640404,-500.0,0.00021917,2]
[311873091,1705482640414,-500.0,0.00021917,2]
[311873093,1705482640423,-500.0,0.00021917,2]
[311873095,1705482640432,-506.4006543,0.00021917,2]
[311873097,1705482640441,-500.0,0.00021917,2]
[311873099,1705482640450,-824.69,0.00021917,2]
[311873100,1705482640460,-277.32,0.00021917,2]
[311873102,1705482640469,-500.0,0.00021917,2]
[311873105,1705482640479,-500.0,0.00021917,2]
[311873106,1705482640489,-500.0,0.00021917,2]
[311873109,1705482640498,-517.21991379,0.00021917,2]
[311873110,1705482640507,-2064.35,0.00021917,2]
[311873112,1705482640517,-597.72,0.00021917,2]
[311873114,1705482640526,-500.0,0.00021917,2]
[311873116,1705482640536,-781.58,0.00021917,2]
[311873119,1705482640545,-500.0,0.00021917,2]
[311873121,1705482640555,-500.0,0.00021917,2]
[311873122,1705482640565,-214.2253194,0.00021917,2]
[311873125,1705482640574,-500.0,0.00021917,2]
[311873127,1705482640583,-1460.74,0.00021917,2]
[311873129,1705482640593,-595.74,0.00021917,2]
[311873131,1705482640602,-500.0,0.00021917,2]
[311873132,1705482640611,-701.71,0.00021917,2]
[311873134,1705482640621,-500.0,0.00021917,2]
[311873137,1705482640631,-1249.05,0.00021917,2]
[311873138,1705482640640,-996.32,0.00021917,2]
[311873141,1705482640649,-500.0,0.00021917,2]
[311873142,1705482640658,-500.0,0.00021917,2]
[311873144,1705482640667,-500.0,0.00021917,2]
[311873146,1705482640676,-979.98,0.00021917,2]
[311873149,1705482640686,-524.92799442,0.00021917,2]
[311873151,1705482640695,-503.13957987,0.00021917,2]
[311873153,1705482640704,-1106.09,0.00021917,2]
[311873155,1705482640713,-808.85,0.00021917,2]
[311873157,1705482640722,-824.91,0.00021917,2]
[311873159,1705482640731,-1010.47,0.00021917,2]
[311873160,1705482640740,-500.0,0.00021917,2]
[311873163,1705482640749,-1259.34,0.00021917,2]
[311873165,1705482640758,-1152.3,0.00021917,2]
[311873167,1705482640768,-500.0,0.00021917,2]
[311873169,1705482640777,-500.0,0.00021917,2]
[311873171,1705482640786,-500.0,0.00021917,2]
[311873172,1705482640795,-872.46,0.00021917,2]
[311873174,1705482640804,-500.0,0.00021917,2]
[311873177,1705482640814,-500.0,0.00021917,2]
[311873179,1705482640823,-500.0,0.00021917,2]
[311873181,1705482640832,-640.9,0.00021917,2]
[311873183,1705482640841,-500.0,0.00021917,2]
[311873185,1705482640850,-738.21,0.00021917,2]
[311873187,1705482640859,-500.0,0.00021917,2]
[311873189,1705482640868,-500.0,0.00021917,2]
[311873191,1705482640876,-1734.58,0.00021917,2]
[311873193,1705482640886,-499.999999,0.00021917,2]
[311873194,1705482640895,-500.0,0.00021917,2]
[311873196,1705482640905,-500.0,0.00021917,2]
[311873198,1705482640914,-327.60128622,0.00021917,2]
[311873200,1705482640923,-511.93673748,0.00021917,2]
[311873202,1705482640932,-500.0,0.00021917,2]
[311873204,1705482640942,-500.0,0.00021917,2]
[311873206,1705482640951,-500.0,0.00021917,2]
[311873209,1705482640960,-500.0,0.00021917,2]
[311873211,1705482640970,-500.0,0.00021917,2]
[311873213,1705482640980,-1000.0,0.00021917,7]
[311873215,1705482640988,-825.85,0.00021917,2]
[311873217,1705482640998,-969.22,0.00021917,2]
[311873219,1705482641007,-500.0,0.00021917,2]
[311873221,1705482641016,-548.74929744,0.00021917,2]
[311873223,1705482641025,-500.0,0.00021917,2]
[311873225,1705482641033,-500.0,0.00021917,2]
[311873227,1705482641044,-500.0,0.00021917,2]
[311873229,1705482641053,-500.0,0.00021917,2]
[311873231,1705482641062,-500.0,0.00021917,2]
[311873233,1705482641071,-1077.99,0.00021917,2]
[311873235,1705482641081,-587.36907697,0.00021917,2]
[311873237,1705482641090,-500.0,0.00021917,2]
[311873239,1705482641100,-559.37,0.00021917,2]
[311873241,1705482641109,-500.0,0.00021917,2]
[311873243,1705482641118,-1338.92,0.00021917,2]
[311873245,1705482641127,-500.0,0.00021917,2]
[311873247,1705482641137,-500.0,0.00021917,2]
[311873248,1705482641147,-509.54,0.00021917,2]
[311873249,1705482641157,-1759.64,0.00021917,2]
[311873250,1705482641166,-965.99,0.00021917,2]
[311873251,1705482641175,-1246.63,0.00021917,2]
[311873252,1705482641184,-500.0,0.00021917,2]
[311873253,1705482641193,-500.0,0.00021917,2]
[311873254,1705482641206,-767.06,0.00021917,2]
[311873256,1705482641215,-542.18,0.00021917,2]
[311873258,1705482641224,-500.0,0.00021917,2]
[311873260,1705482641233,-500.0,0.00021917,2]
[311873262,1705482641243,-500.0,0.00021917,2]
[311873265,1705482641253,-500.0,0.00021917,2]
[311873267,1705482641262,-675.44,0.00021917,2]
[311873269,1705482641272,-500.0,0.00021917,2]
[311873271,1705482641283,-919.05,0.00021917,2]
[311873273,1705482641293,-500.0,0.00021917,2]
[311873275,1705482641303,-500.0,0.00021917,2]
[311873277,1705482641312,-500.0,0.00021917,2]
[311873279,1705482641321,-500.0,0.00021917,2]
[311873281,1705482641330,-769.04,0.00021917,2]
[311873283,1705482641339,-500.0,0.00021917,2]
[311873285,1705482641349,-634.33,0.00021917,2]
[311873287,1705482641358,-510.625343,0.00021917,2]
[311873289,1705482641367,-1220.55,0.00021917,2]
[311873291,1705482641377,-500.0,0.00021917,2]
[311873293,1705482641386,-500.0,0.00021917,2]
[311873295,1705482641395,-500.0,0.00021917,2]
[311873297,1705482641404,-779.51,0.00021917,2]
[311873299,1705482641413,-957.75,0.00021917,2]
[311873301,1705482641422,-789.87,0.00021917,2]
[311873303,1705482641431,-500.0,0.00021917,2]
[311873305,1705482641440,-500.0,0.00021917,2]
[311873307,1705482641450,-570.28845142,0.00021917,2]
[311873309,1705482641459,-500.0,0.00021917,2]
[311873311,1705482641468,-795.49,0.00021917,2]
[311873313,1705482641478,-600.02,0.00021917,2]
[311873315,1705482641487,-665.77,0.00021917,2]
[311873317,1705482641496,-612.59,0.00021917,2]
[311873319,1705482641505,-814.6,0.00021917,2]
[311873321,1705482641514,-500.0,0.00021917,2]
[311873323,1705482641523,-500.0,0.00021917,2]
[311873325,1705482641533,-500.0,0.00021917,2]
[311873327,1705482641542,-522.28,0.00021917,2]
[311873329,1705482641552,-916.02,0.00021917,2]
[311873331,1705482641562,-777.17,0.00021917,2]
[311873333,1705482641571,-534.73,0.00021917,2]
[311873335,1705482641581,-500.0,0.00021917,2]
[311873337,1705482641590,-922.18,0.00021917,2]
[311873339,1705482641600,-500.0,0.00021917,2]
[311873341,1705482641610,-1000.3,0.00021917,2]
[311873343,1705482641619,-500.0,0.00021917,2]
[311873345,1705482641628,-987.35,0.00021917,2]
[311873347,1705482641637,-500.0,0.00021917,2]
[311873349,1705482641647,-500.0,0.00021917,2]
[311873351,1705482641657,-578.52,0.00021917,2]
[311873353,1705482641666,-1028.03,0.00021917,2]
[311873355,1705482641676,-500.0,0.00021917,2]
[311873357,1705482641685,-509.76,0.00021917,2]
[311873359,1705482641695,-574.44,0.00021917,2]
[311873361,1705482641704,-619.01,0.00021917,2]
[311873363,1705482641713,-1227.75,0.00021917,2]
[311873365,1705482641722,-500.0,0.00021917,2]
[311873367,1705482641731,-709.16,0.00021917,2]
[311873369,1705482641740,-426.84106011,0.00021917,2]
[311873371,1705482641750,-500.0,0.00021917,2]
[311873373,1705482641760,-774.97,0.00021917,2]
[311873375,1705482641769,-1002.02,0.00021917,2]
[311873377,1705482641778,-1622.81,0.00021917,2]
[311873379,1705482641787,-1275.71,0.00021917,2]
[311873381,1705482641796,-354.45833948,0.00021917,2]
[311873383,1705482641806,-500.0,0.00021917,2]
[311873385,1705482641815,-500.0,0.00021917,2]
[311873387,1705482641824,-500.0,0.00021917,2]
[311873389,1705482641833,-500.0,0.00021917,2]
[311873391,1705482641842,-609.02430672,0.00021917,2]
[311873393,1705482641851,-500.0,0.00021917,2]
[311873395,1705482641860,-603.31,0.00021917,2]
[311873397,1705482641869,-500.0,0.00021917,2]
[311873399,1705482641879,-852.5,0.00021917,2]
[311873401,1705482641888,-636.01273564,0.00021917,7]
[311873403,1705482641898,-956.73,0.00021917,2]
[311873405,1705482641909,-500.0,0.00021917,2]
[311873407,1705482641923,-500.0,0.00021917,2]
[311873409,1705482641932,-1116.72,0.00021917,2]
[311873411,1705482641942,-1080.3,0.00021917,2]
[311873413,1705482641952,-648.0,0.00021917,2]
[311873415,1705482641962,-500.0,0.00021917,2]
[311873417,1705482641972,-849.34,0.00021917,2]
[311873419,1705482641983,-549.83,0.00021917,2]
[311873421,1705482641992,-500.0,0.00021917,2]
[311873423,1705482642001,-1871.38,0.00021917,2]
[311873425,1705482642010,-500.0,0.00021917,2]
[311873427,1705482642020,-500.0,0.00021917,2]
[311873429,1705482642031,-712.38,0.00021917,2]
[311873431,1705482642040,-500.0,0.00021917,2]
[311873433,1705482642049,-989.57,0.00021917,2]
[311873436,1705482642060,-710.96,0.00021917,2]
[311873438,1705482642071,-987.19,0.00021917,2]
[311873440,1705482642080,-506.61401238,0.00021917,2]
[311873442,1705482642089,-1080.37,0.00021917,2]
[311873444,1705482642098,-500.0,0.00021917,2]
[311873446,1705482642107,-500.0,0.00021917,2]
[311873448,1705482642117,-500.0,0.00021917,2]
[311873450,1705482642126,-1182.23,0.00021917,2]
[311873452,1705482642135,-701.26,0.00021917,2]
[311873453,1705482642145,-500.0,0.00021917,2]
[311873456,1705482642154,-1305.5,0.00021917,2]
[311873458,1705482642163,-500.0,0.00021917,2]
[311873459,1705482642173,-500.0,0.00021917,2]
[311873462,1705482642183,-500.0,0.00021917,2]
[311873463,1705482642192,-500.0,0.00021917,2]
[311873465,1705482642202,-500.0,0.00021917,2]
[311873467,1705482642212,-500.0,0.00021917,2]
[311873470,1705482642222,-500.0,0.00021917,2]
[311873472,1705482642231,-500.0,0.00021917,2]
[311873474,1705482642241,-500.0,0.00021917,2]
[311873476,1705482642250,-500.0,0.00021917,2]
[311873478,1705482642259,-804.38,0.00021917,2]
[311873480,1705482642269,-905.6,0.00021917,2]
[311873482,1705482642280,-639.62,0.00021917,2]
[311873484,1705482642292,-500.0,0.00021917,2]
[311873486,1705482642302,-500.0,0.00021917,2]
[311873488,1705482642314,-500.0,0.00021917,2]
[311873490,1705482642325,-812.82,0.00021917,2]
[311873492,1705482642335,-500.0,0.00021917,2]
[311873493,1705482642345,-774.03,0.00021917,2]
[311873496,1705482642354,-585.4,0.00021917,2]
[311873498,1705482642365,-540.68,0.00021917,2]
[311873500,1705482642375,-500.0,0.00021917,2]
[311873502,1705482642384,-1240.49,0.00021917,2]
[311873503,1705482642395,-528.10555098,0.00021917,2]
[311873506,1705482642405,-500.0,0.00021917,2]
[311873508,1705482642416,-503.06,0.00021917,2]
[311873510,1705482642426,-920.75,0.00021917,2]
[311873511,1705482642437,-783.48,0.00021917,2]
[311873513,1705482642447,-1145.06,0.00021917,2]
[311873516,1705482642458,-884.18,0.00021917,2]
[311873517,1705482642468,-552.61,0.00021917,2]
[311873519,1705482642479,-500.0,0.00021917,2]
[311873521,1705482642489,-500.0,0.00021917,2]
[311873524,1705482642499,-500.0,0.00021917,2]
[311873526,1705482642509,-500.0,0.00021917,2]
[311873528,1705482642518,-500.0,0.00021917,2]
[311873529,1705482642528,-500.0,0.00021917,2]
[311873531,1705482642538,-1201.92,0.00021917,2]
[311873532,1705482642548,-500.0,0.00021917,2]
[311873533,1705482642557,-500.0,0.00021917,2]
[311873534,1705482642568,-500.0,0.00021917,2]
[311873535,1705482642578,-864.19,0.00021917,2]
[311873536,1705482642586,-1135.36,0.00021917,2]
[311873537,1705482642596,-808.47,0.00021917,2]
[311873538,1705482642605,-500.0,0.00021917,2]
[311873539,1705482642615,-1962.33,0.00021917,2]
[311873541,1705482642624,-500.0,0.00021917,2]
[311873543,1705482642635,-500.0,0.00021917,2]
[311873544,1705482642644,-569.8,0.00021917,2]
[311873545,1705482642653,-500.0,0.00021917,2]
[311873546,1705482642663,-500.0,0.00021917,2]
[311873547,1705482642672,-538.52844186,0.00021917,2]
[311873548,1705482642682,-1000.0,0.00021917,2]
[311873549,1705482642692,-500.0,0.00021917,2]
[311873550,1705482642702,-500.0,0.00021917,2]
[311873551,1705482642711,-1000.0,0.00021917,2]
[311873552,1705482642720,-500.0,0.00021917,2]
[311873553,1705482642730,-834.88,0.00021917,2]
[311873554,1705482642739,-500.0,0.00021917,2]
[311873555,1705482642749,-500.0,0.00021917,2]
[311873556,1705482642758,-500.0,0.00021917,2]
[311873557,1705482642767,-841.08,0.00021917,2]
[311873558,1705482642776,-1168.78,0.00021917,2]
[311873559,1705482642785,-521.3,0.00021917,2]